fUSD/lending_fUSD_20260208
["ID","MTS","AMOUNT","RATE_DAILY","PERIOD"]
[404806541,1770581459907,-500.0,0.00043835,120]
[404806542,1770581459917,-604.13045611,0.00043835,120]
[404806543,1770581459926,-210.402383,0.00043835,120]
[404806544,1770581459935,-639.86957073,0.00043835,120]
[404806545,1770581459944,-210.402383,0.00043835,120]
[404806546,1770581459954,-210.402383,0.00043835,120]
[404806547,1770581459963,-210.402383,0.00043835,120]
[404806548,1770581459972,-500.0,0.00043835,120]
[404806549,1770581459981,-151.0,0.00043835,120]
[404806550,1770581459991,-500.0,0.00043835,120]
[404806551,1770581460000,-264.629596,0.00043835,120]
[404806552,1770581460012,-500.0,0.00043835,120]
[404806553,1770581460026,-151.0,0.00043835,120]
[404806554,1770581460041,-500.0,0.00043835,120]
[404806555,1770581460055,-488.67561774,0.00043835,120]
[404806556,1770581460067,-500.0,0.00043835,120]
[404806557,1770581460079,-603.18402753,0.00043835,120]
[404806558,1770581460092,-500.0,0.00043835,120]
[404806559,1770581460105,-500.0,0.00043835,120]
[404806560,1770581460117,-151.0,0.00043835,31]
[404806561,1770581460130,-629.36447768,0.00043835,120]
[404806562,1770581460144,-500.0,0.00043835,120]
[404806563,1770581460158,-500.0,0.00043835,120]
[404806564,1770581460169,-151.0,0.00043835,31]
[404806565,1770581460180,-500.0,0.00043835,120]
[404806566,1770581460193,-500.0,0.00043835,120]
[404806567,1770581460205,-544.29198745,0.00043835,120]
[404806568,1770581460218,-500.0,0.00043835,120]
[404806569,1770581460232,-500.0,0.00043835,60]
[404806570,1770581460245,-500.0,0.00043835,60]
[404806571,1770581460258,-500.0,0.00043835,120]
[404806572,1770581460271,-500.0,0.00043835,60]
[404806573,1770581460285,-500.0,0.00043835,120]
[404806574,1770581460297,-555.38557599,0.00043835,60]
[404806575,1770581460311,-532.48707506,0.00043835,120]
[404806576,1770581460324,-167.044396,0.00043835,120]
[404806577,1770581460337,-500.0,0.00043835,120]
[404806578,1770581460350,-500.0,0.00043835,120]
[404806579,1770581460362,-500.0,0.00043835,120]
[404806580,1770581460373,-511.57938372,0.00043835,120]
[404806581,1770581460386,-500.0,0.00043835,120]
[404806582,1770581460402,-500.0,0.00043835,120]
[404806583,1770581460414,-500.0,0.00043835,120]
[404806584,1770581460434,-500.0,0.00043835,120]
[404806585,1770581460446,-270.734552,0.00043835,120]
[404806586,1770581460458,-500.0,0.00043835,120]
[404806587,1770581460468,-368.9451958,0.00043835,120]
[404806588,1770581460480,-500.0,0.00043835,120]
[404806589,1770581460491,-500.0,0.00043835,120]
[404806590,1770581460505,-500.0,0.00043835,120]
[404806591,1770581460519,-291.96120471,0.00043835,120]
[404806592,1770581460531,-500.0,0.00043835,120]
[404806593,1770581460542,-311.55175678,0.00043835,120]
[404806594,1770581460553,-500.0,0.00043835,120]
[404806595,1770581460566,-500.0,0.00043835,120]
[404806596,1770581460579,-509.09531564,0.00043835,120]
[404806597,1770581460591,-534.94518937,0.00043835,120]
[404806598,1770581460603,-500.0,0.00043835,120]
[404806599,1770581460613,-232.78555384,0.00043835,120]
[404806600,1770581460624,-172.780967,0.00043835,120]
[404806601,1770581460637,-233.08419558,0.00043835,120]
[404806602,1770581460648,-524.55130583,0.00043835,120]
[404806603,1770581460659,-500.0,0.00043835,120]
[404806604,1770581460671,-500.0,0.00043835,120]
[404806605,1770581460683,-500.0,0.00043835,120]
[404806606,1770581460694,-500.0,0.00043835,120]
[404806607,1770581460705,-500.0,0.00043835,120]
[404806608,1770581460717,-500.0,0.00043835,120]
[404806609,1770581460728,-500.0,0.00043835,120]
[404806610,1770581460740,-500.0,0.00043835,120]
[404806611,1770581460752,-500.0,0.00043835,120]
[404806612,1770581460763,-648.78849303,0.00043835,120]
[404806613,1770581460775,-500.0,0.00043835,120]
[404806614,1770581460791,-500.0,0.00043835,120]
[404806615,1770581460802,-500.0,0.00043835,120]
[404806616,1770581460814,-526.00668681,0.00043835,120]
[404806617,1770581460826,-500.0,0.00043835,120]
[404806618,1770581460838,-500.0,0.00043835,120]
[404806619,1770581460850,-284.3852292,0.00043835,120]
[404806620,1770581460862,-500.0,0.00043835,120]
[404806621,1770581460873,-500.0,0.00043835,120]
[404806622,1770581460884,-500.0,0.00043835,120]
[404806623,1770581460895,-500.0,0.00043835,120]
[404806624,1770581460907,-500.0,0.00043835,120]
[404806625,1770581460919,-500.0,0.00043835,120]
[404806626,1770581460930,-326.32563819,0.00043835,120]
[404806627,1770581460941,-500.0,0.00043835,120]
[404806628,1770581460952,-500.0,0.00043835,120]
[404806629,1770581460963,-500.0,0.00043835,120]
[404806630,1770581460975,-500.0,0.00043835,120]
[404806631,1770581460986,-500.0,0.00043835,120]
[404806632,1770581460997,-561.23969575,0.00043835,120]
[404806633,1770581461008,-500.0,0.00043835,120]
[404806634,1770581461020,-500.0,0.00043835,120]
[404806635,1770581461032,-500.0,0.00043835,120]
[404806636,1770581461044,-500.0,0.00043835,120]
[404806637,1770581461055,-500.0,0.00043835,120]
[404806638,1770581461066,-500.0,0.00043835,120]
[404806639,1770581461078,-500.0,0.00043835,120]
[404806640,1770581461090,-500.0,0.00043835,120]
[404806641,1770581461101,-500.0,0.00043835,120]
[404806642,1770581461113,-500.0,0.00043835,120]
[404806643,1770581461125,-266.87008558,0.00043835,120]
[404806644,1770581461136,-500.0,0.00043835,120]
[404806645,1770581461147,-500.0,0.00043835,120]
[404806646,1770581461159,-500.0,0.00043835,120]
[404806647,1770581461170,-500.0,0.00043835,120]
[404806648,1770581461182,-229.57752344,0.00043835,120]
[404806649,1770581461194,-396.65196312,0.00043835,120]
[404806650,1770581461205,-181.71051896,0.00043835,120]
[404806651,1770581461216,-500.0,0.00043835,120]
[404806652,1770581461228,-500.0,0.00043835,120]
[404806653,1770581461239,-500.0,0.00043835,120]
[404806654,1770581461251,-500.0,0.00043835,120]
[404806655,1770581461262,-500.0,0.00043835,120]
[404806656,1770581461273,-511.3673236,0.00043835,120]
[404806657,1770581461285,-388.63702032,0.00043835,120]
[404806658,1770581461297,-422.4432999,0.00043835,120]
[404806659,1770581461309,-505.97748896,0.00043835,120]
[404806660,1770581461321,-500.0,0.00043835,120]
[404806661,1770581461333,-500.0,0.00043835,120]
[404806662,1770581461344,-500.0,0.00043835,120]
[404806663,1770581461356,-500.0,0.00043835,120]
[404806664,1770581461369,-500.0,0.00043835,120]
[404806665,1770581461380,-500.0,0.00043835,120]
[404806666,1770581461391,-500.0,0.00043835,120]
[404806667,1770581461403,-500.0,0.00043835,120]
[404806668,1770581461414,-500.0,0.00043835,120]
[404806669,1770581461427,-500.0,0.00043835,120]
[404806670,1770581461438,-500.0,0.00043835,120]
[404806671,1770581461449,-500.0,0.00043835,120]
[404806672,1770581461461,-500.0,0.00043835,120]
[404806673,1770581461472,-519.15612258,0.00043835,120]
[404806674,1770581461483,-169.2028659,0.00043835,120]
[404806675,1770581461494,-500.0,0.00043835,120]
[404806676,1770581461506,-542.43627848,0.00043835,120]
[404806677,1770581461517,-500.0,0.00043835,120]
[404806678,1770581461529,-500.0,0.00043835,120]
[404806679,1770581461539,-575.2849,0.00043835,120]
[404806680,1770581461551,-501.5922851,0.00043835,120]
[404806681,1770581461562,-312.94720447,0.00043835,120]
[404806682,1770581461573,-500.0,0.00043835,120]
[404806683,1770581461584,-500.0,0.00043835,120]
[404806684,1770581461595,-500.0,0.00043835,120]
[404806685,1770581461606,-511.55298531,0.00043835,120]
[404806686,1770581461617,-500.0,0.00043835,120]
[404806687,1770581461628,-403.83140366,0.00043835,120]
[404806688,1770581461640,-339.51953535,0.00043835,120]
[404806689,1770581461652,-203.85438539,0.00043835,120]
[404806690,1770581461665,-500.0,0.00043835,120]
[404806691,1770581461678,-500.0,0.00043835,120]
[404806692,1770581461691,-500.0,0.00043835,120]
[404806693,1770581461704,-500.0,0.00043835,120]
[404806694,1770581461713,-625.66336267,0.00043835,120]
[404806695,1770581461723,-500.0,0.00043835,120]
[404806696,1770581461732,-500.0,0.00043835,120]
[404806697,1770581461742,-208.00206938,0.00043835,120]
[404806698,1770581461752,-500.0,0.00043835,120]
[404806699,1770581461761,-500.0,0.00043835,120]
[404806700,1770581461771,-559.27188841,0.00043835,120]
[404806701,1770581461784,-413.30027943,0.00043835,120]
[404806702,1770581461794,-631.1560404,0.00043835,120]
[404806703,1770581461804,-500.0,0.00043835,120]
[404806704,1770581461813,-157.62691,0.00043835,120]
[404806705,1770581461824,-155.39755215,0.00043835,120]
[404806706,1770581461834,-500.0,0.00043835,120]
[404806707,1770581461843,-500.0,0.00043835,120]
[404806708,1770581461853,-500.0,0.00043835,2]
[404806709,1770581462085,-151.0,0.00043835,120]
[404806710,1770581462103,-500.0,0.00043835,2]
[404806711,1770581462114,-500.0,0.00043835,2]
[404806712,1770581462123,-500.0,0.00043835,2]
[404806713,1770581462132,-500.0,0.00043835,2]
[404806714,1770581462141,-196.36745353,0.00043835,120]
[404806715,1770581462150,-500.0,0.00043835,2]
[404806716,1770581462160,-500.0,0.00043835,2]
[404806717,1770581462170,-500.0,0.00043835,2]
[404806718,1770581462180,-500.0,0.00043835,2]
[404806719,1770581462189,-248.41264527,0.00043835,2]
[404806720,1770581462199,-500.0,0.00043835,120]
[404806721,1770581462209,-500.0,0.00043835,120]
[404806722,1770581462219,-500.0,0.00043835,120]
[404806723,1770581462229,-500.0,0.00043835,120]
[404806724,1770581462239,-500.0,0.00043835,120]
[404806725,1770581462249,-500.0,0.00043835,120]
[404806726,1770581462259,-232.05409517,0.00043835,120]
[404806727,1770581462269,-500.0,0.00043835,120]
[404806728,1770581462279,-540.30529125,0.00043835,120]
[404806729,1770581462290,-500.0,0.00043835,30]
[404806730,1770581462300,-528.41828337,0.00043835,120]
[404806731,1770581462310,-500.0,0.00043835,30]
[404806732,1770581462319,-500.0,0.00043835,120]
[404806733,1770581462329,-500.0,0.00043835,30]
[404806734,1770581462339,-542.02836704,0.00043835,120]
[404806735,1770581462348,-500.0,0.00043835,30]
[404806736,1770581462358,-435.72047607,0.00043835,120]
[404806737,1770581462367,-523.43556626,0.00043835,30]
[404806738,1770581462377,-500.0,0.00043835,120]
[404806739,1770581462387,-446.34121915,0.00043835,120]
[404806740,1770581462396,-500.0,0.00043835,120]
[404806741,1770581462406,-500.0,0.00043835,2]
[404806742,1770581462415,-500.0,0.00043835,120]
[404806743,1770581462425,-500.0,0.00043835,2]
[404806744,1770581462435,-500.0,0.00043835,120]
[404806745,1770581462445,-162.06284473,0.00043835,2]
[404806746,1770581462454,-500.0,0.00043835,120]
[404806747,1770581462464,-514.37454421,0.00043835,120]
[404806748,1770581462473,-500.0,0.00043835,120]
[404806749,1770581462483,-500.0,0.00043835,120]
[404806750,1770581462492,-151.0,0.00043835,120]
[404806751,1770581462502,-216.46652126,0.00043835,120]
[404806752,1770581462511,-500.0,0.00043835,120]
[404806753,1770581462520,-235.12786398,0.00043835,120]
[404806754,1770581462530,-1000.0,0.00043835,120]
[404806755,1770581462540,-1000.0,0.00043835,120]
[404806756,1770581462549,-1000.0,0.00043835,120]
[404806757,1770581462559,-1000.0,0.00043835,120]
[404806758,1770581462568,-1147.60406338,0.00043835,120]
[404806759,1770581462578,-500.0,0.00043835,120]
[404806760,1770581462588,-500.0,0.00043835,120]
[404806761,1770581462597,-500.0,0.00043835,120]
[404806762,1770581462607,-521.39584036,0.00043835,120]
[404806763,1770581462616,-500.0,0.00043835,120]
[404806764,1770581462626,-500.0,0.00043835,120]
[404806765,1770581462636,-234.45076428,0.00043835,120]
[404806766,1770581462645,-500.0,0.00043835,120]
[404806767,1770581462655,-500.0,0.00043835,120]
[404806768,1770581462664,-500.0,0.00043835,120]
[404806769,1770581462674,-503.92733061,0.00043835,120]
[404806770,1770581462683,-500.0,0.00043835,120]
[404806771,1770581462692,-500.0,0.00043835,120]
[404806772,1770581462701,-388.87053539,0.00043835,120]
[404806773,1770581462710,-500.0,0.00043835,120]
[404806774,1770581462719,-500.0,0.00043835,120]
[404806775,1770581462728,-500.0,0.00043835,120]
[404806776,1770581462737,-518.10471303,0.00043835,120]
[404806777,1770581462746,-500.0,0.00043835,120]
[404806778,1770581462754,-500.0,0.00043835,120]
[404806779,1770581462763,-500.0,0.00043835,120]
[404806780,1770581462773,-429.65,0.00043835,120]
[404806781,1770581462787,-500.0,0.00043835,120]
[404806782,1770581462796,-500.0,0.00043835,120]
[404806783,1770581462805,-500.0,0.00043835,120]
[404806784,1770581462815,-508.99305739,0.00043835,120]
[404806785,1770581462825,-500.0,0.00043835,120]
[404806786,1770581462835,-500.0,0.00043835,120]
[404806787,1770581462844,-206.652568,0.00043835,120]
[404806788,1770581462854,-500.0,0.00043835,120]
[404806789,1770581462863,-500.0,0.00043835,120]
[404806790,1770581462873,-391.02250849,0.00043835,120]
[404806791,1770581462882,-206.652568,0.00043835,120]
[404806792,1770581462891,-500.0,0.00043835,120]
[404806793,1770581462901,-500.0,0.00043835,120]
[404806794,1770581462910,-544.50111106,0.00043835,120]
[404806795,1770581462920,-500.0,0.00043835,120]
[404806796,1770581462929,-500.0,0.00043835,120]
[404806797,1770581462938,-206.652568,0.00043835,120]
[404806798,1770581462947,-500.0,0.00043835,120]
[404806799,1770581462956,-500.0,0.00043835,120]
[404806800,1770581462966,-206.652568,0.00043835,120]
[404806801,1770581462974,-164.78930235,0.00043835,120]
[404806802,1770581462983,-206.652568,0.00043835,120]
[404806803,1770581462992,-206.652568,0.00043835,120]
[404806804,1770581463001,-206.652568,0.00043835,120]
[404806805,1770581463010,-202.47641107,0.00043835,30]
[404806806,1770581463020,-163.58893741,0.00043836,5]
[404806807,1770581463029,-150.0,0.00043837,30]
[404806808,1770581463039,-283.51902163,0.0004384,120]
[404806809,1770581463048,-209.6,0.0004384,120]
[404806810,1770581463058,-163.02793945,0.0004384,120]
[404806811,1770581463067,-163.02793945,0.0004384,120]
[404806812,1770581463077,-150.0,0.00043873,10]
[404806813,1770581463086,-601.7,0.000439,30]
[404806814,1770581463095,-49184.09,0.000439,120]
[404806815,1770581463104,-151.0,0.000439,120]
[404806816,1770581463114,-150.0,0.00043943,30]
[404806817,1770581463123,-150.0,0.00043943,30]
[404806818,1770581463132,-10020.04,0.00043945,120]
[404806819,1770581463141,-767.72,0.00043977,2]
[404806820,1770581463151,-150.0,0.00043982,30]
[404806821,1770581463160,-150.0,0.00043999,30]
[404806822,1770581463170,-150.0,0.00043999,30]
[404806823,1770581463179,-1000.0,0.00043999,120]
[404806824,1770581463188,-500.0,0.00044,120]
[404806825,1770581463197,-115844.23213478,0.00044,120]
[404806826,1770581463206,-464.52658357,0.00044,120]
[404806827,1770581463214,-613.6499658,0.00044,120]
[404806828,1770581463224,-1396.99853608,0.00044,120]
[404806829,1770581463233,-737.3113,0.00044,90]
[404806830,1770581463242,-153.0,0.00044,120]
[404806831,1770581463251,-151.0,0.00044,120]
[404806832,1770581463260,-151.0,0.00044,120]
[404806833,1770581463270,-151.0,0.00044,120]
[404806834,1770581463279,-151.0,0.00044,120]
[404806835,1770581463289,-151.0,0.00044,120]
[404806836,1770581463299,-190.590149,0.00044,120]
[404806837,1770581463308,-190.590149,0.00044,120]
[404806838,1770581463318,-190.590149,0.00044,120]
[404806839,1770581463327,-306.468837,0.00044,120]
[404806840,1770581463336,-190.59014673,0.00044,120]
[404806841,1770581463345,-151.0,0.00044,120]
[404806842,1770581463355,-306.468837,0.00044,120]
[404806843,1770581463364,-151.0,0.00044,120]
[404806844,1770581463373,-306.468837,0.00044,120]
[404806845,1770581463383,-154.850041,0.00044,120]
[404806846,1770581463392,-306.468834,0.00044,120]
[404806847,1770581463401,-151.0,0.00044,120]
[404806848,1770581463412,-358.054637,0.00044,120]
[404806849,1770581463421,-358.054637,0.00044,120]
[404806850,1770581463431,-358.054637,0.00044,120]
[404806851,1770581463440,-358.054644,0.00044,120]
[404806852,1770581463449,-151.0,0.00044,120]
[404806853,1770581463459,-151.0,0.00044,120]
[404806854,1770581463469,-152.5711,0.00044,120]
[404806855,1770581463479,-152.5711,0.00044,120]
[404806856,1770581463489,-152.5711,0.00044,120]
[404806857,1770581463499,-152.571108,0.00044,120]
[404806858,1770581463508,-151.0,0.00044,120]
[404806859,1770581463518,-210.402383,0.00044,120]
[404806860,1770581463528,-210.402383,0.00044,120]
[404806861,1770581463538,-210.402383,0.00044,120]
[404806862,1770581463548,-210.402383,0.00044,120]
[404806863,1770581463557,-280.326568,0.00044,31]
[404806864,1770581463567,-500.0,0.00044,120]
[404806865,1770581463577,-206.652568,0.00044,120]
[404806866,1770581463587,-206.652568,0.00044,120]
[404806867,1770581463600,-206.652568,0.00044,120]
[404806868,1770581463609,-2000.0,0.00044038,3]
[404806869,1770581463619,-150.0,0.00044038,30]
[404806870,1770581463629,-150.0,0.00044048,30]
[404806871,1770581463639,-200.0,0.0004406,120]
[404806872,1770581463649,-388.0,0.00044078,2]
[404806873,1770581463659,-1000.0,0.00044099,120]
[404806874,1770581463669,-217.63757,0.00044109,120]
[404806875,1770581463679,-192.510124,0.00044109,120]
[404806876,1770581463689,-192.510124,0.00044109,120]
[404806877,1770581463699,-192.510124,0.00044109,120]
[404806878,1770581463710,-192.510124,0.00044109,120]
[404806879,1770581463720,-151.0,0.00044109,120]
[404806880,1770581463731,-151.0,0.00044109,120]
[404806881,1770581463740,-170.040018,0.00044109,120]
[404806882,1770581463750,-170.040018,0.00044109,120]
[404806883,1770581463761,-170.040018,0.00044109,120]
[404806884,1770581463770,-170.040028,0.00044109,120]
[404806885,1770581463782,-151.0,0.00044109,120]
[404806886,1770581463793,-151.0,0.00044109,120]
[404806887,1770581463803,-16969.85,0.00044109,120]
[404806888,1770581463812,-16969.85,0.00044109,120]
[404806889,1770581463823,-16969.85,0.00044109,120]
[404806890,1770581463834,-16969.85,0.00044109,120]
[404806891,1770581463844,-16969.85,0.00044109,120]
[404806892,1770581463857,-16969.85,0.00044109,120]
[404806893,1770581463866,-16969.85,0.00044109,120]
[404806894,1770581463876,-16969.85,0.00044109,120]
[404806895,1770581463886,-16969.85,0.00044109,120]
[404806896,1770581463895,-16969.85,0.00044109,120]
[404806897,1770581463904,-16969.85,0.00044109,120]
[404806898,1770581463914,-16969.85,0.00044109,120]
[404806899,1770581463924,-16969.85,0.00044109,120]
[404806900,1770581463934,-16969.85,0.00044109,120]
[404806901,1770581463944,-16969.85,0.00044109,120]
[404806902,1770581463954,-16969.85,0.00044109,120]
[404806903,1770581463963,-16969.85,0.00044109,120]
[404806904,1770581463973,-16969.85,0.00044109,120]
[404806905,1770581463983,-16969.85,0.00044109,120]
[404806906,1770581463994,-16969.85,0.00044109,120]
[404806907,1770581464004,-16969.85,0.00044109,120]
[404806908,1770581464013,-16969.85,0.00044109,120]
[404806909,1770581464023,-16969.85,0.00044109,120]
[404806910,1770581464036,-16969.99112704,0.00044109,120]
[404806911,1770581464053,-418.6440012,0.00044109,120]
[404806912,1770581464066,-202.02,0.00044142,120]
[404806913,1770581464076,-193.58,0.00044142,120]
[404806914,1770581464086,-1253.77707055,0.00044143,14]
[404806915,1770581464096,-150.0,0.00044154,30]
[404806916,1770581464106,-200.0,0.00044155,2]
[404806917,1770581464117,-500.0,0.00044159,30]
[404806918,1770581464126,-401.23881249,0.00044161,120]
[404806919,1770581464137,-163.02,0.00044162,120]
[404806920,1770581464147,-436.23576484,0.00044162,19]
[404806921,1770581464158,-1695.98506691,0.00044162,2]
[404806922,1770581464167,-2863.14809157,0.00044162,2]
[404806923,1770581464177,-1706.00579964,0.00044162,28]
[404806924,1770581464186,-862.0,0.00044163,60]
[404806925,1770581464196,-862.0,0.00044163,60]
[404806926,1770581464206,-862.0,0.00044163,60]
[404806927,1770581464219,-862.0,0.00044163,60]
[404806928,1770581464238,-777.0,0.00044163,30]
[404806929,1770581464249,-777.0,0.00044163,30]
[404806930,1770581464258,-49991.0,0.00044167,30]
[404806931,1770581464267,-192.510124,0.00044167,120]
[404806932,1770581464281,-192.510124,0.00044167,120]
[404806933,1770581464290,-192.510124,0.00044167,120]
[404806934,1770581464299,-192.510133,0.00044167,120]
[404806935,1770581464308,-250.0,0.0004417,3]
[404806936,1770581464319,-451.92475362,0.0004417,3]
[404806937,1770581464329,-300.0,0.0004417,3]
[404806938,1770581464338,-301.26028957,0.0004417,3]
[404806939,1770581464347,-398.0,0.00044173,2]
[404806940,1770581464358,-189.0,0.00044176,2]
[404806941,1770581464367,-500.0,0.00044181,30]
[404806942,1770581464378,-500.0,0.00044181,30]
[404806943,1770581464388,-500.0,0.00044181,30]
[404806944,1770581464399,-500.0,0.00044181,30]
[404806945,1770581464408,-500.0,0.00044181,30]
[404806946,1770581464417,-500.0,0.00044181,30]
[404806947,1770581464428,-500.0,0.00044181,30]
[404806948,1770581464438,-304.12823211,0.00044181,30]
[404806949,1770581464447,-151.0,0.00044189,120]
[404806950,1770581464456,-9729.11059843,0.00044189,60]
[404806951,1770581464467,-1000.0,0.00044199,120]
[404806952,1770581464477,-10000.0,0.00044199,45]
[404806953,1770581464486,-167.02,0.000442,14]
[404806954,1770581464496,-150.0,0.000442,29]
[404806955,1770581464506,-150.0,0.000442,73]
[404806956,1770581464516,-515.177445,0.000442,120]
[404806957,1770581464526,-13298.05831724,0.000442,7]
[404806958,1770581464539,-150.0,0.000442,75]
[404806959,1770581464548,-240.15,0.000442,75]
[404806960,1770581464558,-253.0,0.000442,45]
[404806961,1770581464569,-150.0,0.000442,2]
[404806962,1770581464578,-704.34942634,0.000442,120]
[404806963,1770581464588,-200.461407,0.000442,26]
[404806964,1770581464598,-388.0,0.00044214,2]
[404806965,1770581464607,-431.0,0.00044226,2]
[404806966,1770581464617,-10000.0,0.00044232,30]
[404806967,1770581464627,-10000.0,0.00044233,37]
[404806968,1770581464638,-10000.0,0.00044233,38]
[404806969,1770581464647,-10000.0,0.00044233,44]
[404806970,1770581464657,-10000.0,0.00044234,37]
[404806971,1770581464666,-2659.62300454,0.00044234,38]
[404806972,1770581464882,-521.75981653,0.00044234,38]
[404806973,1770581464905,-206.652568,0.00043835,120]
[404806974,1770581464915,-60.01771447,0.00044234,38]
[404806975,1770581465011,-151.0,0.00043738,30]
[404806976,1770581465022,-226.5,0.00043758,30]
[404806977,1770581465034,-206.652572,0.00044,120]
[404806978,1770581465044,-469.44719709,0.00044234,38]
[404806979,1770581465056,-761.0,0.00044234,38]
[404806980,1770581465067,-1700.12755376,0.00044234,38]
[404806981,1770581465102,-500.0,0.00043835,120]
[404806982,1770581465115,-274.13,0.00043835,120]
[404806983,1770581465150,-3828.02471361,0.00044234,38]
[404806984,1770581465161,-2928.4638173,0.00044234,43]
[404806985,1770581465172,-2749.9990095,0.00044234,43]
[404806986,1770581465184,-1504.19585352,0.00044234,43]
[404806987,1770581465197,-2400.4530701,0.00044234,43]
[404806988,1770581465208,-416.88824958,0.00044234,43]
[404806989,1770581465218,-10000.0,0.00044234,44]
[404806990,1770581465230,-9324.87185822,0.00044234,48]
[404806991,1770581465242,-675.12814178,0.00044234,48]
[404806992,1770581465252,-10000.0,0.00044237,30]
[404806993,1770581465261,-431.0,0.00044241,2]
[404806994,1770581465272,-573.44009861,0.00044241,2]
[404806995,1770581465283,-325.40939326,0.00044241,7]
[404806996,1770581465293,-500.0,0.00044241,120]
[404806997,1770581465303,-500.0,0.00044241,120]
[404806998,1770581465312,-500.0,0.00044241,120]
[404806999,1770581465323,-500.0,0.00044241,120]
[404807000,1770581465332,-500.0,0.00044241,120]
[404807001,1770581465342,-500.0,0.00044241,120]
[404807002,1770581465352,-500.0,0.00044241,120]
[404807003,1770581465361,-500.0,0.00044241,120]
[404807004,1770581465371,-500.0,0.00044241,120]
[404807005,1770581465380,-500.0,0.00044241,120]
[404807006,1770581465389,-151.0,0.00044242,120]
[404807007,1770581465399,-151.0,0.00044243,56]
[404807008,1770581465409,-205.41387577,0.00044243,60]
[404807009,1770581465568,-2788.45329058,0.00044243,56]
[404807010,1770581465581,-7211.54670942,0.00044243,56]
[404807011,1770581465592,-10000.0,0.00044243,60]
[404807012,1770581465602,-1000.0,0.00044244,120]
[404807013,1770581465612,-150.0,0.00044244,2]
[404807014,1770581465622,-4671.45366529,0.00044244,2]
[404807015,1770581465631,-150.0,0.00044244,2]
[404807016,1770581465641,-13413.59595424,0.00044244,2]
[404807017,1770581465651,-150.0,0.00044244,2]
[404807018,1770581465660,-3445.92703625,0.00044244,2]
[404807019,1770581465670,-1333.33334,0.00044244,120]
[404807020,1770581465680,-151.0,0.00044249,120]
[404807021,1770581465690,-3519.31685348,0.00044249,30]
[404807022,1770581465699,-3519.31685348,0.00044249,30]
[404807023,1770581465708,-3519.31685348,0.00044249,30]
[404807024,1770581465717,-3519.31685348,0.00044249,30]
[404807025,1770581465726,-3519.31685348,0.00044249,30]
[404807026,1770581465736,-212.1382933,0.00044249,30]
[404807027,1770581465745,-212.1382933,0.00044249,30]
[404807028,1770581465754,-212.1382933,0.00044249,30]
[404807029,1770581465763,-155.53073825,0.0004425,120]
[404807030,1770581465772,-159.1490317,0.0004425,120]
[404807031,1770581465783,-558.58377391,0.00044255,60]
[404807032,1770581465795,-853.53983587,0.00044255,60]
[404807033,1770581465804,-568.69402104,0.00044255,60]
[404807034,1770581465814,-300.79198457,0.00044259,2]
[404807035,1770581465824,-150.0,0.00044259,120]
[404807036,1770581465834,-150.0,0.00044259,2]
[404807037,1770581465843,-1048.31908972,0.00044259,30]
[404807038,1770581465856,-55.68091028,0.00044259,30]
[404807039,1770581465865,-259.26133191,0.00044259,30]
[404807040,1770581465875,-249.16262507,0.00044259,30]